[Event "Titled Tuesday Blitz November 01 Early 2022"]
[White "Yuan, Qingyu"]
[Black "Sarana, Alexey"]
[WhiteFideId "8609772"]
[BlackFideId "24133795"]
[WhiteElo "2359"]
[BlackElo "2689"]
[Result "0-1"]
[Round "03"]
[TimeControl "180+1"]
[Date "2022.11.01"]
[WhiteClock "0:00:04"]
[BlackClock "0:00:15"]

1. e4 {[%clk 0:03:00]}  c5 {[%clk 0:03:00]} 2. Nf3 {[%clk 0:03:01]}  d6 {[%clk 0:03:01]} 3. Bb5+ {[%clk 0:03:02]}  Bd7 {[%clk 0:03:01]} 4. c4 {[%clk 0:03:02]}  Nf6 {[%clk 0:03:00]} 5. Nc3 {[%clk 0:03:02]}  g6 {[%clk 0:03:00]} 6. O-O {[%clk 0:02:59]}  Bg7 {[%clk 0:03:00]} 7. Bxd7+ {[%clk 0:02:57]}  Nbxd7 {[%clk 0:03:00]} 8. d3 {[%clk 0:02:51]}  O-O {[%clk 0:03:00]} 9. h3 {[%clk 0:02:49]}  Ne5 {[%clk 0:02:59]} 10. Be3 {[%clk 0:02:43]}  Nxf3+ {[%clk 0:02:58]} 11. Qxf3 {[%clk 0:02:43]}  Nd7 {[%clk 0:02:59]} 12. Qe2 {[%clk 0:02:39]}  Ne5 {[%clk 0:02:59]} 13. Rab1 {[%clk 0:02:37]}  Nc6 {[%clk 0:02:59]} 14. a3 {[%clk 0:02:35]}  e6 {[%clk 0:02:59]} 15. Qd2 {[%clk 0:02:32]}  Rc8 {[%clk 0:02:47]} 16. b4 {[%clk 0:02:28]}  b6 {[%clk 0:02:45]} 17. Ne2 {[%clk 0:02:15]}  Re8 {[%clk 0:02:33]} 18. Rfc1 {[%clk 0:02:02]}  Qd7 {[%clk 0:02:30]} 19. d4 {[%clk 0:01:57]}  cxd4 {[%clk 0:02:28]} 20. Nxd4 {[%clk 0:01:57]}  Ne5 {[%clk 0:02:22]} 21. Qe2 {[%clk 0:01:44]}  d5 {[%clk 0:02:22]} 22. cxd5 {[%clk 0:01:22]}  exd5 {[%clk 0:02:22]} 23. Qb5 {[%clk 0:01:11]}  dxe4 {[%clk 0:02:15]} 24. Qxd7 {[%clk 0:01:00]}  Nxd7 {[%clk 0:02:16]} 25. Nb5 {[%clk 0:00:48]}  a5 {[%clk 0:01:37]} 26. Nd6 {[%clk 0:00:34]}  Rxc1+ {[%clk 0:01:36]} 27. Rxc1 {[%clk 0:00:35]}  Re6 {[%clk 0:01:36]} 28. Rc8+ {[%clk 0:00:33]}  Bf8 {[%clk 0:01:35]} 29. bxa5 {[%clk 0:00:25]}  bxa5 {[%clk 0:01:28]} 30. Nc4 {[%clk 0:00:25]}  Kg7 {[%clk 0:01:24]} 31. Bd4+ {[%clk 0:00:21]}  Kh6 {[%clk 0:01:04]} 32. Rd8 {[%clk 0:00:17]}  Rc6 {[%clk 0:00:50]} 33. Nxa5 {[%clk 0:00:17]}  Rc7 {[%clk 0:00:46]} 34. g3 {[%clk 0:00:12]}  Bxa3 {[%clk 0:00:44]} 35. Kg2 {[%clk 0:00:08]}  f5 {[%clk 0:00:43]} 36. Re8 {[%clk 0:00:05]}  Bc5 {[%clk 0:00:38]} 37. Bb2 {[%clk 0:00:04]}  Nb6 {[%clk 0:00:36]} 38. Nb3 {[%clk 0:00:03]}  Na4 {[%clk 0:00:14]} 39. Be5 {[%clk 0:00:02]}  Rb7 {[%clk 0:00:13]} 40. Nxc5 {[%clk 0:00:02]}  Nxc5 {[%clk 0:00:14]} 41. h4 {[%clk 0:00:02]}  Nd3 {[%clk 0:00:14]} 42. Bd4 {[%clk 0:00:02]}  Kh5 {[%clk 0:00:14]} 43. Re6 {[%clk 0:00:02]}  h6 {[%clk 0:00:13]} 44. Rd6 {[%clk 0:00:02]}  Rb1 {[%clk 0:00:13]} 45. Be3 {[%clk 0:00:02]}  Ne1+ {[%clk 0:00:13]} 46. Kh3 {[%clk 0:00:03]}  Nf3 {[%clk 0:00:14]} 47. Rc6 {[%clk 0:00:03]}  Rh1+ {[%clk 0:00:14]} 48. Kg2 {[%clk 0:00:04]}  Rh2+ {[%clk 0:00:14]} 49. Kf1 {[%clk 0:00:04]}  g5 {[%clk 0:00:14]} 50. hxg5 {[%clk 0:00:04]}  hxg5 {[%clk 0:00:15]} 51. Rc8 {[%clk 0:00:04]}  Rh1+ {[%clk 0:00:15]} 52. Ke2 {[%clk 0:00:04]}  Re1# {[%clk 0:00:15]} 0-1


[Site "https://www.chess.com"]

[Event "Titled Tuesday Blitz November 01 Early 2022"]
[White "Yurovskykh, Oleksandr"]
[Black "Yeritsyan, Hayk"]
[WhiteFideId "14134020"]
[BlackFideId "13307320"]
[WhiteElo "2303"]
[BlackElo "2407"]
[Result "1-0"]
[Round "03"]
[TimeControl "180+1"]
[Date "2022.11.02"]
[WhiteClock "0:00:20"]
[BlackClock "0:00:02"]

1. d4 {[%clk 0:02:53]}  d5 {[%clk 0:02:59]} 2. Bf4 {[%clk 0:02:52]}  Nf6 {[%clk 0:02:59]} 3. e3 {[%clk 0:02:53]}  e6 {[%clk 0:02:59]} 4. Nd2 {[%clk 0:02:53]}  c5 {[%clk 0:02:59]} 5. c3 {[%clk 0:02:53]}  Nc6 {[%clk 0:03:00]} 6. Ngf3 {[%clk 0:02:53]}  Bd6 {[%clk 0:03:01]} 7. Bg3 {[%clk 0:02:53]}  Qe7 {[%clk 0:03:00]} 8. Ne5 {[%clk 0:02:53]}  Qc7 {[%clk 0:03:00]} 9. f4 {[%clk 0:02:47]}  O-O {[%clk 0:02:58]} 10. Bd3 {[%clk 0:02:46]}  Nd7 {[%clk 0:02:59]} 11. O-O {[%clk 0:02:42]}  f6 {[%clk 0:02:58]} 12. Bxh7+ {[%clk 0:02:33]}  Kxh7 {[%clk 0:02:58]} 13. Qh5+ {[%clk 0:02:32]}  Kg8 {[%clk 0:02:57]} 14. Ng6 {[%clk 0:02:32]}  f5 {[%clk 0:02:47]} 15. Nf3 {[%clk 0:02:24]}  Nf6 {[%clk 0:02:11]} 16. Qh8+ {[%clk 0:02:23]}  Kf7 {[%clk 0:02:11]} 17. Nxf8 {[%clk 0:02:12]}  Bxf8 {[%clk 0:02:08]} 18. Bh4 {[%clk 0:01:50]}  Bd7 {[%clk 0:01:48]} 19. Bxf6 {[%clk 0:01:23]}  gxf6 {[%clk 0:01:42]} 20. Qh5+ {[%clk 0:01:19]}  Ke7 {[%clk 0:01:29]} 21. Nh4 {[%clk 0:01:18]}  Re8 {[%clk 0:01:07]} 22. Ng6+ {[%clk 0:01:18]}  Kd8 {[%clk 0:01:06]} 23. Qh8 {[%clk 0:01:01]}  Be7 {[%clk 0:00:58]} 24. Qg7 {[%clk 0:00:59]}  Qd6 {[%clk 0:00:50]} 25. Nxe7 {[%clk 0:00:53]}  Qxe7 {[%clk 0:00:49]} 26. Qxe7+ {[%clk 0:00:53]}  Rxe7 {[%clk 0:00:47]} 27. dxc5 {[%clk 0:00:53]}  Na5 {[%clk 0:00:44]} 28. b3 {[%clk 0:00:48]}  Kc7 {[%clk 0:00:40]} 29. Rf3 {[%clk 0:00:42]}  Rg7 {[%clk 0:00:38]} 30. Rh3 {[%clk 0:00:38]}  Kd8 {[%clk 0:00:34]} 31. Rd1 {[%clk 0:00:37]}  Ke7 {[%clk 0:00:24]} 32. Rh8 {[%clk 0:00:36]}  Nc6 {[%clk 0:00:15]} 33. b4 {[%clk 0:00:34]}  a6 {[%clk 0:00:15]} 34. a3 {[%clk 0:00:34]}  Na7 {[%clk 0:00:12]} 35. Rb8 {[%clk 0:00:32]}  Bc6 {[%clk 0:00:12]} 36. g3 {[%clk 0:00:30]}  Nb5 {[%clk 0:00:10]} 37. Rc1 {[%clk 0:00:19]}  Nxa3 {[%clk 0:00:09]} 38. Rh8 {[%clk 0:00:20]}  Kd7 {[%clk 0:00:08]} 39. Kf2 {[%clk 0:00:20]}  Nc4 {[%clk 0:00:08]} 40. Ke2 {[%clk 0:00:21]}  Bb5 {[%clk 0:00:08]} 41. Kf2 {[%clk 0:00:21]}  Bc6 {[%clk 0:00:08]} 42. Ra1 {[%clk 0:00:21]}  Rf7 {[%clk 0:00:07]} 43. Rg8 {[%clk 0:00:20]}  Kc7 {[%clk 0:00:07]} 44. Rh8 {[%clk 0:00:21]}  Nd2 {[%clk 0:00:07]} 45. Rc1 {[%clk 0:00:20]}  Ne4+ {[%clk 0:00:07]} 46. Kf3 {[%clk 0:00:18]}  Kd7 {[%clk 0:00:06]} 47. h4 {[%clk 0:00:19]}  Rg7 {[%clk 0:00:06]} 48. Rg1 {[%clk 0:00:19]}  Nd2+ {[%clk 0:00:05]} 49. Ke2 {[%clk 0:00:19]}  Ne4 {[%clk 0:00:06]} 50. h5 {[%clk 0:00:18]}  Nxc3+ {[%clk 0:00:06]} 51. Kd3 {[%clk 0:00:17]}  Ne4 {[%clk 0:00:06]} 52. h6 {[%clk 0:00:18]}  Rf7 {[%clk 0:00:05]} 53. h7 {[%clk 0:00:19]}  Bb5+ {[%clk 0:00:05]} 54. Kc2 {[%clk 0:00:19]}  Kc7 {[%clk 0:00:03]} 55. Rh1 {[%clk 0:00:19]}  Nxg3 {[%clk 0:00:03]} 56. Rh6 {[%clk 0:00:19]}  Ne2 {[%clk 0:00:02]} 57. Ra8 {[%clk 0:00:19]}  Rxh7 {[%clk 0:00:01]} 58. Rxh7+ {[%clk 0:00:20]}  Kc6 {[%clk 0:00:02]} 59. Rc8# {[%clk 0:00:20]} 1-0


[Site "https://www.chess.com"]

[Event "Titled Tuesday Blitz November 01 Early 2022"]
[White "Zilleruelo Irizarry, Diego"]
[Black "Marin Ramirez, Gerardo"]
[WhiteFideId "3101460"]
[BlackFideId "3901068"]
[WhiteElo "1998"]
[BlackElo "2041"]
[Result "1-0"]
[Round "03"]
[TimeControl "180+1"]
[Date "2022.11.02"]
[WhiteClock "0:01:38"]
[BlackClock "0:00:14"]

1. e4 {[%clk 0:03:00]}  c5 {[%clk 0:02:02]} 2. Nf3 {[%clk 0:03:00]}  d6 {[%clk 0:02:02]} 3. d4 {[%clk 0:02:59]}  cxd4 {[%clk 0:02:03]} 4. Qxd4 {[%clk 0:03:00]}  a6 {[%clk 0:02:00]} 5. Be2 {[%clk 0:03:00]}  Nc6 {[%clk 0:01:58]} 6. Qe3 {[%clk 0:03:00]}  e6 {[%clk 0:01:57]} 7. O-O {[%clk 0:03:01]}  Nf6 {[%clk 0:01:57]} 8. Rd1 {[%clk 0:03:01]}  Qc7 {[%clk 0:01:57]} 9. c4 {[%clk 0:03:01]}  Be7 {[%clk 0:01:56]} 10. Nc3 {[%clk 0:03:02]}  O-O {[%clk 0:01:54]} 11. b3 {[%clk 0:03:03]}  Nb8 {[%clk 0:01:53]} 12. Bb2 {[%clk 0:03:03]}  b6 {[%clk 0:01:54]} 13. Rac1 {[%clk 0:03:03]}  Bb7 {[%clk 0:01:53]} 14. h3 {[%clk 0:03:01]}  Nbd7 {[%clk 0:01:54]} 15. Nd4 {[%clk 0:02:49]}  Rac8 {[%clk 0:01:52]} 16. Ba3 {[%clk 0:02:44]}  Qb8 {[%clk 0:01:40]} 17. f4 {[%clk 0:02:38]}  Rfe8 {[%clk 0:01:36]} 18. Bf3 {[%clk 0:02:37]}  Bf8 {[%clk 0:01:21]} 19. Kh1 {[%clk 0:02:34]}  d5 {[%clk 0:01:05]} 20. Bxf8 {[%clk 0:02:35]}  dxe4 {[%clk 0:01:03]} 21. Nxe4 {[%clk 0:02:24]}  Rxf8 {[%clk 0:00:54]} 22. Ng5 {[%clk 0:01:59]}  h6 {[%clk 0:00:29]} 23. Ne4 {[%clk 0:01:53]}  Nxe4 {[%clk 0:00:24]} 24. Bxe4 {[%clk 0:01:54]}  Bxe4 {[%clk 0:00:23]} 25. Qxe4 {[%clk 0:01:55]}  Nf6 {[%clk 0:00:23]} 26. Qe3 {[%clk 0:01:53]}  b5 {[%clk 0:00:22]} 27. cxb5 {[%clk 0:01:50]}  axb5 {[%clk 0:00:18]} 28. Nc6 {[%clk 0:01:41]}  Rc7 {[%clk 0:00:14]} 29. Nxb8 {[%clk 0:01:38]} 1-0


[Site "https://www.chess.com"]

[Event "Titled Tuesday Blitz November 01 Early 2022"]
[White "Aarav Dengla"]
[Black "Wieczorek, Oskar"]
[WhiteFideId "45059756"]
[BlackFideId "1133950"]
[WhiteElo "2257"]
[BlackElo "2404"]
[Result "0-1"]
[Round "04"]
[TimeControl "180+1"]
[Date "2022.11.02"]
[WhiteClock "0:00:12"]
[BlackClock "0:00:03"]

1. e4 {[%clk 0:03:00]}  e5 {[%clk 0:02:59]} 2. Nf3 {[%clk 0:02:58]}  Nc6 {[%clk 0:02:59]} 3. Bb5 {[%clk 0:02:58]}  a6 {[%clk 0:02:59]} 4. Ba4 {[%clk 0:02:57]}  Nf6 {[%clk 0:02:59]} 5. O-O {[%clk 0:02:56]}  Be7 {[%clk 0:03:00]} 6. Re1 {[%clk 0:02:56]}  b5 {[%clk 0:03:00]} 7. Bb3 {[%clk 0:02:56]}  d6 {[%clk 0:03:01]} 8. c3 {[%clk 0:02:56]}  O-O {[%clk 0:03:02]} 9. h3 {[%clk 0:02:54]}  a5 {[%clk 0:03:02]} 10. a4 {[%clk 0:02:52]}  b4 {[%clk 0:03:01]} 11. d4 {[%clk 0:02:47]}  bxc3 {[%clk 0:03:01]} 12. bxc3 {[%clk 0:02:47]}  exd4 {[%clk 0:03:02]} 13. cxd4 {[%clk 0:02:48]}  d5 {[%clk 0:03:02]} 14. e5 {[%clk 0:02:44]}  Ne4 {[%clk 0:03:03]} 15. Nbd2 {[%clk 0:02:43]}  Nxd2 {[%clk 0:02:38]} 16. Bxd2 {[%clk 0:02:44]}  Nb4 {[%clk 0:02:39]} 17. Re3 {[%clk 0:02:25]}  c5 {[%clk 0:02:30]} 18. dxc5 {[%clk 0:02:18]}  Bxc5 {[%clk 0:02:30]} 19. Bxb4 {[%clk 0:02:18]}  axb4 {[%clk 0:02:04]} 20. Rd3 {[%clk 0:02:17]}  Qb6 {[%clk 0:02:04]} 21. Qe1 {[%clk 0:02:00]}  Be6 {[%clk 0:01:56]} 22. Bxd5 {[%clk 0:01:58]}  Rad8 {[%clk 0:01:57]} 23. Be4 {[%clk 0:01:56]}  Rxd3 {[%clk 0:01:56]} 24. Bxd3 {[%clk 0:01:57]}  b3 {[%clk 0:01:57]} 25. a5 {[%clk 0:01:57]}  Qa7 {[%clk 0:01:40]} 26. Kf1 {[%clk 0:01:31]}  Rd8 {[%clk 0:01:39]} 27. Qe2 {[%clk 0:01:16]}  b2 {[%clk 0:00:33]} 28. Rb1 {[%clk 0:01:14]}  Ba3 {[%clk 0:00:27]} 29. Ng5 {[%clk 0:00:48]}  g6 {[%clk 0:00:14]} 30. Nxe6 {[%clk 0:00:43]}  fxe6 {[%clk 0:00:14]} 31. Bc4 {[%clk 0:00:42]}  Qc5 {[%clk 0:00:12]} 32. g3 {[%clk 0:00:28]}  Kg7 {[%clk 0:00:12]} 33. a6 {[%clk 0:00:21]}  Rc8 {[%clk 0:00:04]} 34. Bxe6 {[%clk 0:00:12]}  Qc1+ {[%clk 0:00:04]} 35. Kg2 {[%clk 0:00:12]}  Qxb1 {[%clk 0:00:03]} 36. Bxc8 {[%clk 0:00:12]}  Qc1 {[%clk 0:00:02]} 37. a7 {[%clk 0:00:12]}  b1=Q {[%clk 0:00:02]} 38. a8=Q {[%clk 0:00:12]}  Qh1# {[%clk 0:00:03]} 0-1


[Site "https://www.chess.com"]

[Event "Titled Tuesday Blitz November 01 Early 2022"]
[White "Aizpurua, Patrick Emilio"]
[Black "Oglaza, Oskar"]
[WhiteFideId "6600522"]
[BlackFideId "1194402"]
[WhiteElo "2378"]
[BlackElo "2204"]
[Result "1-0"]
[Round "04"]
[TimeControl "180+1"]
[Date "2022.11.02"]
[WhiteClock "0:00:05"]
[BlackClock "0:00:05"]

1. d4 {[%clk 0:03:00]}  Nf6 {[%clk 0:02:59]} 2. c4 {[%clk 0:03:00]}  c5 {[%clk 0:02:57]} 3. Nf3 {[%clk 0:03:01]}  cxd4 {[%clk 0:02:54]} 4. Nxd4 {[%clk 0:03:02]}  e6 {[%clk 0:02:53]} 5. Nc3 {[%clk 0:03:02]}  Bb4 {[%clk 0:02:37]} 6. Bd2 {[%clk 0:03:01]}  O-O {[%clk 0:02:36]} 7. e3 {[%clk 0:03:01]}  Nc6 {[%clk 0:02:35]} 8. Bd3 {[%clk 0:02:59]}  Nxd4 {[%clk 0:02:34]} 9. exd4 {[%clk 0:03:00]}  b6 {[%clk 0:02:33]} 10. Qf3 {[%clk 0:02:55]}  Rb8 {[%clk 0:02:29]} 11. O-O {[%clk 0:02:54]}  Bb7 {[%clk 0:02:28]} 12. Qh3 {[%clk 0:02:54]}  d5 {[%clk 0:02:10]} 13. cxd5 {[%clk 0:02:46]}  Bxc3 {[%clk 0:02:04]} 14. bxc3 {[%clk 0:02:40]}  Qxd5 {[%clk 0:02:05]} 15. Rae1 {[%clk 0:02:38]}  Rbd8 {[%clk 0:01:12]} 16. Re5 {[%clk 0:02:24]}  Qxa2 {[%clk 0:01:12]} 17. Bg5 {[%clk 0:02:23]}  Ba6 {[%clk 0:01:12]} 18. Bxf6 {[%clk 0:00:46]}  Bxd3 {[%clk 0:01:11]} 19. Bxg7 {[%clk 0:00:44]}  Bxf1 {[%clk 0:00:46]} 20. Qg3 {[%clk 0:00:43]}  Bd3 {[%clk 0:00:43]} 21. Bf6+ {[%clk 0:00:26]}  Bg6 {[%clk 0:00:41]} 22. h4 {[%clk 0:00:25]}  Rd5 {[%clk 0:00:36]} 23. Qf4 {[%clk 0:00:22]}  Rxe5 {[%clk 0:00:14]} 24. Qh6 {[%clk 0:00:20]}  Qxf2+ {[%clk 0:00:14]} 25. Kxf2 {[%clk 0:00:20]}  Rf5+ {[%clk 0:00:15]} 26. Ke3 {[%clk 0:00:19]}  Rxf6 {[%clk 0:00:15]} 27. h5 {[%clk 0:00:19]}  Rf5 {[%clk 0:00:15]} 28. g4 {[%clk 0:00:18]}  Rf1 {[%clk 0:00:15]} 29. hxg6 {[%clk 0:00:17]}  fxg6 {[%clk 0:00:15]} 30. Qg5 {[%clk 0:00:17]}  R8f3+ {[%clk 0:00:13]} 31. Ke2 {[%clk 0:00:15]}  R1f2+ {[%clk 0:00:13]} 32. Ke1 {[%clk 0:00:15]}  Kf7 {[%clk 0:00:13]} 33. Qb5 {[%clk 0:00:14]}  Rf1+ {[%clk 0:00:10]} 34. Kd2 {[%clk 0:00:13]}  Rg1 {[%clk 0:00:09]} 35. Qd7+ {[%clk 0:00:12]}  Kg8 {[%clk 0:00:08]} 36. Qxe6+ {[%clk 0:00:12]}  Kg7 {[%clk 0:00:08]} 37. Qd7+ {[%clk 0:00:11]}  Kh6 {[%clk 0:00:07]} 38. Qd5 {[%clk 0:00:08]}  Rg2+ {[%clk 0:00:07]} 39. Ke1 {[%clk 0:00:08]}  Rfg3 {[%clk 0:00:07]} 40. Kf1 {[%clk 0:00:08]}  Rg1+ {[%clk 0:00:07]} 41. Ke2 {[%clk 0:00:08]}  R1g2+ {[%clk 0:00:07]} 42. Kd1 {[%clk 0:00:08]}  Rg1+ {[%clk 0:00:07]} 43. Kc2 {[%clk 0:00:08]}  R1g2+ {[%clk 0:00:07]} 44. Kb3 {[%clk 0:00:08]}  Rxg4 {[%clk 0:00:08]} 45. Qf7 {[%clk 0:00:07]}  g5 {[%clk 0:00:07]} 46. Qxa7 {[%clk 0:00:06]}  b5 {[%clk 0:00:06]} 47. Qb6+ {[%clk 0:00:06]}  Kh5 {[%clk 0:00:06]} 48. Qxb5 {[%clk 0:00:06]}  Kh4 {[%clk 0:00:06]} 49. Qd7 {[%clk 0:00:05]}  h5 {[%clk 0:00:06]} 50. d5 {[%clk 0:00:04]}  Rg1 {[%clk 0:00:07]} 51. d6 {[%clk 0:00:04]}  Rb1+ {[%clk 0:00:07]} 52. Kc2 {[%clk 0:00:04]}  Rf1 {[%clk 0:00:06]} 53. Qc7 {[%clk 0:00:04]}  Rf2+ {[%clk 0:00:07]} 54. Kb3 {[%clk 0:00:05]}  Rd2 {[%clk 0:00:06]} 55. d7 {[%clk 0:00:04]}  Rg1 {[%clk 0:00:06]} 56. d8=Q {[%clk 0:00:04]}  Rxd8 {[%clk 0:00:03]} 57. Qxd8 {[%clk 0:00:05]}  Kh3 {[%clk 0:00:04]} 58. c4 {[%clk 0:00:05]}  g4 {[%clk 0:00:04]} 59. c5 {[%clk 0:00:05]}  g3 {[%clk 0:00:05]} 60. c6 {[%clk 0:00:06]}  g2 {[%clk 0:00:05]} 61. c7 {[%clk 0:00:05]}  Rb1+ {[%clk 0:00:05]} 62. Kc2 {[%clk 0:00:04]}  g1=Q {[%clk 0:00:05]} 63. c8=Q+ {[%clk 0:00:05]}  Kh2 {[%clk 0:00:05]} 64. Qh4+ {[%clk 0:00:05]}  Kg2 {[%clk 0:00:05]} 65. Qch3# {[%clk 0:00:05]} 1-0


[Site "https://www.chess.com"]

[Event "Titled Tuesday Blitz November 01 Early 2022"]
[White "Andreev, Konstantin"]
[Black "Olsen, Filip Boe"]
[WhiteFideId "24239305"]
[BlackFideId "1440640"]
[WhiteElo "2106"]
[BlackElo "2333"]
[Result "1/2-1/2"]
[Round "04"]
[TimeControl "180+1"]
[Date "2022.11.02"]
[WhiteClock "0:00:07"]
[BlackClock "0:00:13"]

1. e4 {[%clk 0:03:00]}  c5 {[%clk 0:02:58]} 2. Nf3 {[%clk 0:02:59]}  a6 {[%clk 0:02:53]} 3. c4 {[%clk 0:02:58]}  Nc6 {[%clk 0:02:49]} 4. d4 {[%clk 0:02:56]}  cxd4 {[%clk 0:02:49]} 5. Nxd4 {[%clk 0:02:57]}  e5 {[%clk 0:02:48]} 6. Nb3 {[%clk 0:02:56]}  Nf6 {[%clk 0:02:46]} 7. Nc3 {[%clk 0:02:56]}  Bb4 {[%clk 0:02:45]} 8. Bd3 {[%clk 0:02:57]}  O-O {[%clk 0:02:43]} 9. O-O {[%clk 0:02:58]}  h6 {[%clk 0:02:33]} 10. Bd2 {[%clk 0:02:53]}  d6 {[%clk 0:02:26]} 11. Qe2 {[%clk 0:02:51]}  Be6 {[%clk 0:02:10]} 12. Nd5 {[%clk 0:02:43]}  Bxd2 {[%clk 0:02:03]} 13. Qxd2 {[%clk 0:02:40]}  Rc8 {[%clk 0:02:01]} 14. Rac1 {[%clk 0:02:25]}  Nd7 {[%clk 0:01:37]} 15. Kh1 {[%clk 0:02:21]}  Nc5 {[%clk 0:01:37]} 16. Nxc5 {[%clk 0:02:11]}  dxc5 {[%clk 0:01:38]} 17. f4 {[%clk 0:02:11]}  exf4 {[%clk 0:01:35]} 18. Qxf4 {[%clk 0:02:09]}  Qg5 {[%clk 0:01:33]} 19. Qf2 {[%clk 0:02:00]}  Ne5 {[%clk 0:01:29]} 20. Be2 {[%clk 0:01:54]}  Bxd5 {[%clk 0:01:26]} 21. exd5 {[%clk 0:01:50]}  b6 {[%clk 0:01:23]} 22. a3 {[%clk 0:01:38]}  a5 {[%clk 0:01:21]} 23. Qf4 {[%clk 0:01:30]}  Rfe8 {[%clk 0:01:15]} 24. Qxg5 {[%clk 0:01:26]}  hxg5 {[%clk 0:01:16]} 25. Kg1 {[%clk 0:01:27]}  Rcd8 {[%clk 0:01:13]} 26. Kf2 {[%clk 0:01:26]}  Ng6 {[%clk 0:01:12]} 27. Bg4 {[%clk 0:01:23]}  Ne5 {[%clk 0:01:01]} 28. Be2 {[%clk 0:01:22]}  f5 {[%clk 0:01:00]} 29. Rfe1 {[%clk 0:01:17]}  g6 {[%clk 0:00:58]} 30. b4 {[%clk 0:01:13]}  axb4 {[%clk 0:00:57]} 31. axb4 {[%clk 0:01:14]}  cxb4 {[%clk 0:00:51]} 32. Rb1 {[%clk 0:01:14]}  Ra8 {[%clk 0:00:49]} 33. Rxb4 {[%clk 0:01:08]}  Ra2 {[%clk 0:00:49]} 34. Kf1 {[%clk 0:01:09]}  Rc2 {[%clk 0:00:27]} 35. Rxb6 {[%clk 0:01:06]}  Nxc4 {[%clk 0:00:24]} 36. Bxc4 {[%clk 0:01:07]}  Rxe1+ {[%clk 0:00:22]} 37. Kxe1 {[%clk 0:01:08]}  Rxc4 {[%clk 0:00:23]} 38. Rxg6+ {[%clk 0:01:07]}  Kf7 {[%clk 0:00:24]} 39. Rxg5 {[%clk 0:01:07]}  Kf6 {[%clk 0:00:24]} 40. Rg8 {[%clk 0:00:59]}  Rd4 {[%clk 0:00:24]} 41. Rf8+ {[%clk 0:00:48]}  Ke5 {[%clk 0:00:18]} 42. Re8+ {[%clk 0:00:44]}  Kf6 {[%clk 0:00:17]} 43. Re6+ {[%clk 0:00:44]}  Kf7 {[%clk 0:00:18]} 44. Rd6 {[%clk 0:00:34]}  Ke7 {[%clk 0:00:18]} 45. Re6+ {[%clk 0:00:34]}  Kf7 {[%clk 0:00:18]} 46. Ra6 {[%clk 0:00:33]}  Rxd5 {[%clk 0:00:18]} 47. Ke2 {[%clk 0:00:33]}  Rb5 {[%clk 0:00:18]} 48. h4 {[%clk 0:00:31]}  Rb4 {[%clk 0:00:18]} 49. g3 {[%clk 0:00:29]}  Kg7 {[%clk 0:00:18]} 50. Kf3 {[%clk 0:00:29]}  Rc4 {[%clk 0:00:18]} 51. Rd6 {[%clk 0:00:28]}  Rb4 {[%clk 0:00:19]} 52. Ke3 {[%clk 0:00:27]}  Rg4 {[%clk 0:00:13]} 53. Kf3 {[%clk 0:00:24]}  Ra4 {[%clk 0:00:14]} 54. Kg2 {[%clk 0:00:17]}  Rb4 {[%clk 0:00:13]} 55. Kf3 {[%clk 0:00:17]}  Ra4 {[%clk 0:00:13]} 56. Kg2 {[%clk 0:00:18]}  Rb4 {[%clk 0:00:14]} 57. h5 {[%clk 0:00:18]}  Ra4 {[%clk 0:00:13]} 58. Kh3 {[%clk 0:00:19]}  Rb4 {[%clk 0:00:13]} 59. Rg6+ {[%clk 0:00:17]}  Kf7 {[%clk 0:00:12]} 60. Rg5 {[%clk 0:00:14]}  Kf6 {[%clk 0:00:12]} 61. Rg6+ {[%clk 0:00:14]}  Kf7 {[%clk 0:00:13]} 62. Ra6 {[%clk 0:00:13]}  Kg7 {[%clk 0:00:13]} 63. Rd6 {[%clk 0:00:12]}  Ra4 {[%clk 0:00:12]} 64. Kg2 {[%clk 0:00:12]}  Rb4 {[%clk 0:00:12]} 65. Kf3 {[%clk 0:00:12]}  Ra4 {[%clk 0:00:13]} 66. Ke3 {[%clk 0:00:11]}  Rg4 {[%clk 0:00:13]} 67. Kf3 {[%clk 0:00:10]}  Ra4 {[%clk 0:00:14]} 68. Rd5 {[%clk 0:00:09]}  Kf6 {[%clk 0:00:14]} 69. h6 {[%clk 0:00:04]}  Kg6 {[%clk 0:00:14]} 70. Rd6+ {[%clk 0:00:04]}  Kh7 {[%clk 0:00:14]} 71. Kg2 {[%clk 0:00:04]}  Rb4 {[%clk 0:00:13]} 72. Kf3 {[%clk 0:00:04]}  Ra4 {[%clk 0:00:14]} 73. Ke3 {[%clk 0:00:05]}  Rb4 {[%clk 0:00:14]} 74. Rf6 {[%clk 0:00:03]}  Rg4 {[%clk 0:00:12]} 75. Kf3 {[%clk 0:00:03]}  Ra4 {[%clk 0:00:13]} 76. Kg2 {[%clk 0:00:03]}  Rb4 {[%clk 0:00:12]} 77. Kh3 {[%clk 0:00:04]}  Ra4 {[%clk 0:00:13]} 78. Rxf5 {[%clk 0:00:04]}  Kxh6 {[%clk 0:00:13]} 79. Rf6+ {[%clk 0:00:05]}  Kg5 {[%clk 0:00:13]} 80. Rb6 {[%clk 0:00:05]}  Ra1 {[%clk 0:00:13]} 81. Rb5+ {[%clk 0:00:06]}  Kg6 {[%clk 0:00:13]} 82. Kg4 {[%clk 0:00:06]}  Ra4+ {[%clk 0:00:14]} 83. Kh3 {[%clk 0:00:07]}  Ra1 {[%clk 0:00:14]} 84. Rb6+ {[%clk 0:00:06]}  Kg5 {[%clk 0:00:13]} 85. Rb5+ {[%clk 0:00:07]}  Kg6 {[%clk 0:00:13]} 1/2-1/2


[Site "https://www.chess.com"]